bitfinex-derivatives/quotes_ETHF0:USTF0_20241008
["timestamp","ask_amount","ask_price","bid_price","bid_amount"]
[1728412779946,1.02595,2438.1,2437.8,0.41043]
[1728412779947,0.41037,2438.2,2438.1,0.41037]
[1728412780150,0.41038,2438.1,2438.0,0.41038]
[1728412780353,0.41039,2438.0,2437.7,0.41044]
[1728412780553,0.41039,2438.0,2437.6,1.02616]
[1728412780554,0.41039,2438.0,2437.9,0.41041]
[1728412781648,1.02591,2438.2,2437.8,0.41041]
[1728412781649,0.41041,2437.9,2437.8,0.41041]
[1728412783052,0.4104,2438.0,2437.9,0.4104]
[1728412783258,1.02598,2438.1,2437.6,1.02615]
[1728412783259,0.41038,2438.1,2438.0,0.41038]
[1728412783953,0.4104,2438.0,2437.9,0.4104]
[1728412784849,0.41039,2438.1,2438.0,0.41038]
[1728412786656,0.4104,2438.0,2437.9,0.4104]
[1728412787554,1.02592,2438.2,2437.7,3.2078]
[1728412787759,0.41043,2437.9,2437.8,0.41042]
[1728412787963,0.41043,2437.9,2437.8,0.41043]
[1728412788658,0.4104,2438.0,2437.9,0.4104]
[1728412789958,0.4104,2438.1,2438.0,0.41039]
[1728412791053,0.41039,2438.1,2438.0,0.41038]
[1728412791455,0.41041,2438.0,2437.9,0.4104]
[1728412792763,0.41046,2437.6,2437.5,2.04955]
[1728412793561,0.41046,2437.7,2437.6,0.41044]
[1728412795363,0.41046,2437.6,2437.5,2.04956]
[1728412796062,0.41046,2437.6,2437.5,1.6391]
[1728412796361,0.41046,2437.6,2437.5,2.04958]
[1728412797461,0.41046,2437.7,2437.6,0.41045]
[1728412798466,0.41041,2438.0,2437.9,0.4104]
[1728412798662,0.41042,2437.9,2437.8,0.41041]
[1728412800969,3.2078,2438.3,2437.5,8.0469]
[1728412801165,3.2078,2438.3,2437.9,3.2]
[1728412801356,3.2078,2438.3,2437.5,4.8469]
[1728412801357,0.41038,2438.1,2438.0,3.06299]
[1728412801563,0.41038,2438.1,2438.0,1.7584]
[1728412801964,0.41031,2438.5,2438.2,0.41036]
[1728412802267,0.41032,2438.5,2438.3,0.41033]
[1728412802459,0.41032,2438.5,2438.0,5.98436]
[1728412802460,0.41032,2438.5,2438.1,0.8846]
[1728412802660,0.41032,2438.5,2438.4,0.41033]
[1728412803060,5.0116,2438.7,2438.2,0.41035]
[1728412803265,1.02574,2438.6,2438.2,0.41035]
[1728412803464,0.41034,2438.4,2438.2,0.41035]
[1728412803671,0.41034,2438.4,2438.1,0.8846]
[1728412804163,0.41034,2438.4,2438.0,1.7584]
[1728412804366,0.41032,2438.5,2438.0,1.7584]
[1728412804561,4.0386,2438.7,2438.0,1.7584]
[1728412804765,0.41038,2438.2,2438.0,2.16878]
[1728412805064,4.22579,2438.5,2437.7,3.2]
[1728412805365,1.02601,2438.0,2437.6,3.61825]
[1728412805674,1.688,2438.0,2437.6,3.2078]
[1728412805859,1.26519,2438.1,2437.9,0.41041]
[1728412806058,0.8548,2438.1,2438.0,0.41039]
[1728412806366,0.8548,2438.1,2437.6,7.43394]
[1728412806666,5.21149987,2438.3,2437.8,0.91]
[1728412806874,9.9779429,2438.4,2437.9,0.8347]
[1728412807171,0.41036,2438.3,2438.2,0.41035]
[1728412807772,0.8652,2438.4,2438.3,0.41034]
[1728412807773,1.27665666,2438.4,2438.3,0.41034]
[1728412808066,1.27665666,2438.4,2437.9,5.06851]
[1728412808067,0.4103,2438.6,2438.5,0.41031]
[1728412808271,0.86638911,2438.7,2438.2,3.2078]
[1728412808475,0.86638911,2438.7,2438.6,0.41029]
[1728412808660,0.41026,2438.8,2438.3,1.87105]
[1728412808661,0.86638911,2438.8,2438.5,0.41029]
[1728412808966,0.86638911,2438.8,2438.4,0.9151]
[1728412809166,1.27665911,2438.8,2438.7,0.41028]
[1728412809367,0.86638911,2438.8,2438.4,0.9151]
[1728412809565,0.41028,2438.7,2438.6,0.41028]
[1728412810071,0.41028,2438.7,2438.6,4.51108]
[1728412811268,0.86638911,2438.8,2438.4,0.9151]
[1728412811563,0.41031,2438.6,2438.5,0.4103]
[1728412812566,0.41031,2438.5,2438.4,1.32541]
[1728412812766,0.4103,2438.6,2438.5,0.4103]
[1728412813673,0.4103,2438.6,2438.4,0.9151]
[1728412813674,0.41029,2438.7,2438.6,0.41029]
[1728412814081,0.41031,2438.6,2438.5,0.41031]
[1728412814875,1.89206911,2438.8,2438.4,0.9151]
[1728412815077,0.41033,2438.4,2438.3,0.8788]
[1728412815280,0.41033,2438.4,2438.3,1.28914]
[1728412815471,0.86638911,2438.6,2438.3,17.3874]
[1728412815671,1.27664911,2438.8,2438.4,0.8591]
[1728412815981,1.27664911,2438.8,2438.7,0.41028]
[1728412816580,0.86638911,2438.8,2438.3,7.2866]
[1728412816772,0.86638911,2438.8,2438.3,4.0788]
[1728412816974,0.41028,2438.7,2438.6,0.41028]
[1728412817176,0.86638911,2438.7,2438.6,0.41028]
[1728412817375,1.27665911,2438.8,2438.7,0.41028]
[1728412820479,0.86638911,2438.8,2438.7,0.41028]
[1728412821083,1.27663911,2438.9,2438.8,0.41026]
[1728412821783,0.41025,2438.9,2438.8,0.41026]
[1728412821983,5.31400987,2439.0,2438.5,1.02577]
[1728412822183,5.31400987,2439.0,2438.8,0.41024]
[1728412822184,0.41026,2438.9,2438.8,0.41024]
[1728412822385,0.41027,2438.8,2438.7,0.41026]
[1728412823682,1.02554,2439.1,2438.7,4.1008]
[1728412823683,4.28839987,2439.1,2438.7,4.1008]
[1728412823889,0.41021,2439.1,2439.0,0.41022]
[1728412824683,1.92122,2439.2,2438.7,1.02569]
[1728412824890,1.92122,2439.2,2439.0,0.41021]
[1728412824891,0.41022,2439.1,2439.0,0.41021]
[1728412825187,1.92122,2439.2,2438.7,1.02569]
[1728412825385,0.41024,2439.0,2438.9,0.41022]
[1728412825795,0.41028,2438.8,2438.7,0.41026]
[1728412826590,0.41028,2438.8,2438.4,6.00241]
[1728412826591,0.41028,2438.8,2438.4,4.9766]
[1728412826990,0.41029,2438.7,2438.6,0.41028]
[1728412827386,0.41029,2438.7,2438.6,4.51108]
[1728412828185,0.41028,2438.8,2438.7,0.41027]
[1728412829688,0.41029,2438.7,2438.6,0.41028]
[1728412829890,1.93792,2438.9,2438.4,1.7766]
[1728412830089,1.93792,2438.9,2438.5,0.4103]
[1728412830090,0.41031,2438.6,2438.5,0.4103]
[1728412830987,0.41031,2438.5,2438.4,1.7766]
[1728412831192,0.41031,2438.5,2438.4,0.858]
[1728412831789,0.41031,2438.5,2438.4,1.26833]
[1728412831992,0.4103,2438.6,2438.4,0.858]
[1728412832195,1.0257,2438.7,2438.6,0.41028]
[1728412832196,0.41028,2438.7,2438.6,0.41028]
[1728412832493,0.41027,2438.8,2438.7,0.41026]
[1728412835096,0.41025,2438.9,2438.8,0.41024]
[1728412835285,0.41025,2438.9,2438.6,4.121]
[1728412835491,0.41028,2438.8,2438.7,0.41026]
[1728412836188,0.41028,2438.8,2438.6,4.121]
[1728412836189,0.41028,2438.7,2438.6,1.33129]
[1728412839000,0.41025,2438.9,2438.8,0.41024]
[1728412839490,0.41024,2439.0,2438.9,0.41023]
[1728412840096,0.8560038,2439.1,2438.8,3.2]
[1728412840300,2.5130038,2439.2,2438.8,4.22565]
[1728412840502,2.06721,2439.2,2439.1,0.41021]
[1728412840794,2.9232138,2439.2,2439.1,0.41021]
[1728412841296,1.2662138,2439.2,2439.1,0.41021]
[1728412841488,1.2662138,2439.2,2438.9,1.9255]
[1728412841489,0.8560038,2439.3,2439.0,3.2]
[1728412841693,0.41019,2439.3,2439.2,0.41019]
[1728412842098,1.8813638,2439.5,2439.1,0.9234]
[1728412842292,0.41017,2439.4,2439.3,0.41016]
[1728412842889,1.7174038,2439.6,2439.2,3.2]
[1728412843094,0.41016,2439.5,2439.4,0.41015]
[1728412843591,0.8560038,2439.6,2439.5,0.41014]
[1728412843794,0.8560038,2439.7,2439.6,0.41012]
[1728412843998,0.41008,2439.9,2439.8,0.41009]
[1728412843999,1.2660838,2439.9,2439.8,0.41009]
[1728412844198,0.8560038,2439.9,2439.8,0.41009]
[1728412844402,1.2660738,2439.9,2439.8,0.41009]
[1728412844902,1.88991,2440.1,2440.0,0.41006]
[1728412844903,2.1308538,2440.1,2440.0,0.41006]
[1728412845098,0.8560038,2440.1,2440.0,3.61006]
[1728412845402,0.41003,2440.2,2440.1,0.41003]
[1728412845604,0.8560038,2440.3,2439.9,3.61007]
[1728412845797,0.41006,2440.0,2439.9,3.61007]
[1728412846198,0.41002,2440.2,2440.0,0.41004]
[1728412846501,0.41006,2440.0,2439.9,3.61006]
[1728412846903,1.8810438,2440.3,2439.9,3.61006]
[1728412847097,0.41005,2440.1,2439.9,3.61006]
[1728412847397,0.41005,2440.1,2440.0,0.41006]
[1728412847603,0.41004,2440.2,2439.9,3.2]
[1728412847792,1.8810438,2440.3,2439.9,3.61006]
[1728412848001,1.02506,2440.2,2439.9,3.2]
[1728412848196,0.41005,2440.1,2440.0,0.41005]
[1728412848801,0.41005,2440.1,2439.9,3.61006]
[1728412849204,0.41005,2440.1,2440.0,0.41006]
[1728412849505,0.8560038,2440.3,2440.2,0.41002]
[1728412849708,0.8560038,2440.4,2440.0,4.9642]
[1728412849901,0.41003,2440.2,2440.1,0.41003]
[1728412850601,0.41003,2440.2,2440.0,4.9642]
[1728412850602,0.41001,2440.3,2440.2,0.41002]
[1728412851010,1.2660038,2440.4,2440.2,0.41002]
[1728412851205,1.2660038,2440.4,2440.3,0.41001]
[1728412851408,1.2660038,2440.4,2440.3,3.61001]
[1728412851608,1.2660038,2440.4,2440.3,2.98199015]
[1728412851809,1.2660038,2440.4,2440.3,3.39200015]
[1728412852309,1.2660038,2440.4,2440.3,2.98199015]
[1728412852602,1.2660038,2440.4,2440.3,3.39200015]
[1728412853299,1.2660038,2440.4,2440.3,0.87794985]
[1728412854003,1.2660038,2440.4,2440.3,0.46793985]
[1728412854400,5.55440367,2440.4,2440.3,0.87794985]
[1728412856008,5.55440367,2440.4,2440.3,0.46793985]
[1728412856209,5.55440367,2440.4,2440.3,0.87794985]
[1728412856404,1.2660038,2440.4,2440.3,0.46793985]
[1728412856913,1.2660038,2440.4,2440.3,0.87794985]
[1728412858006,0.8560038,2440.4,2440.3,0.87794985]
[1728412860213,1.2659938,2440.4,2440.3,0.87794985]
[1728412860414,0.8560038,2440.4,2440.3,0.87794985]
[1728412860611,1.92813,2440.8,2440.7,0.40994]
[1728412860612,2.1692338,2440.8,2440.7,0.40994]
[1728412860818,0.40993,2440.8,2440.7,3.60994]
[1728412862819,0.40993,2440.8,2440.7,3.2]
[1728412863114,0.40993,2440.8,2440.7,3.60994]
[1728412865107,0.8560038,2441.0,2440.7,3.2]
[1728412865314,0.8560038,2441.0,2440.8,0.8767]
[1728412865519,0.8560038,2441.0,2440.9,3.60991]
[1728412865712,1.2658938,2441.0,2440.9,3.60991]
[1728412865919,0.8560038,2441.0,2440.9,3.60991]
[1728412867117,0.40988,2441.1,2440.9,3.2]
[1728412867314,0.40988,2441.1,2441.0,3.60989]
[1728412867622,0.40988,2441.1,2441.0,3.2]
[1728412868123,0.40989,2441.0,2440.9,3.2]
[1728412868325,0.40989,2441.0,2440.9,3.60991]
[1728412869520,0.40988,2441.1,2441.0,0.40988]
[1728412870416,0.40989,2441.0,2440.9,3.60989]
[1728412870914,0.40989,2441.0,2440.9,3.2]
[1728412871115,10.0968,2441.0,2440.5,3.2]
[1728412871313,3.2078,2441.1,2440.5,3.2]
[1728412871314,0.40996,2440.6,2440.5,3.2]
[1728412874217,0.40996,2440.6,2440.1,0.9112]
[1728412874218,0.41002,2440.2,2440.1,3.2]
[1728412874426,0.41002,2440.2,2440.1,3.61004]
[1728412874723,0.41002,2440.2,2440.1,3.2]
[1728412874922,0.41002,2440.2,2440.1,3.61004]
[1728412878232,0.41002,2440.2,2440.1,3.2]
[1728412878431,0.41006,2440.0,2439.9,3.2]
[1728412879126,0.41006,2440.0,2439.5,1.02533]
[1728412879127,0.41012,2439.6,2439.5,3.2]
[1728412879325,1.0252,2439.9,2439.5,3.2]
[1728412879523,0.41012,2439.6,2439.5,3.61014]
[1728412879928,0.41017,2439.3,2439.2,1.29129]
[1728412880121,0.41016,2439.4,2439.3,3.2]
[1728412880321,1.02535,2439.6,2439.2,0.8811]
[1728412880526,0.4102,2439.2,2439.1,0.4102]
[1728412880729,1.26419,2439.3,2439.2,0.41019]
[1728412881121,1.88279,2439.7,2439.2,4.1]
[1728412881321,0.41013,2439.6,2439.5,0.41013]
[1728412881925,0.41014,2439.5,2439.4,0.41014]
[1728412882223,1.7115,2439.7,2439.3,3.2]
[1728412882224,0.41013,2439.6,2439.5,0.41013]
[1728412882629,0.854,2439.7,2439.4,0.9179]
[1728412882827,0.41012,2439.6,2439.5,1.28284]
[1728412885423,1.26412,2439.7,2439.6,0.41012]
[1728412885622,0.41012,2439.6,2439.5,1.28284]
[1728412887631,0.854,2439.7,2439.5,0.8727]
[1728412887935,1.26412,2439.7,2439.6,0.41012]
[1728412889529,0.41012,2439.7,2439.6,0.41012]
[1728412890128,0.41012,2439.7,2439.6,3.61012]
[1728412890530,0.4101,2439.8,2439.7,0.41009]
[1728412890831,0.41009,2439.9,2439.8,0.41009]
[1728412891032,0.4101,2439.8,2439.7,0.4101]
[1728412892020,0.41005,2440.1,2439.9,0.41007]
[1728412892234,0.41004,2440.2,2440.1,0.41003]
[1728412892433,0.41004,2440.1,2440.0,1.26844]
[1728412892635,1.35103,2440.3,2440.2,0.41002]
[1728412892822,0.41003,2440.2,2440.1,0.41002]
[1728412893227,0.41004,2440.1,2440.0,1.26845]
[1728412893526,0.41004,2440.1,2440.0,0.8584]
[1728412894836,0.41004,2440.1,2440.0,1.26846]
[1728412895031,0.41007,2439.9,2439.8,3.2]
[1728412895234,0.4101,2439.8,2439.7,0.41009]
[1728412895427,0.41009,2439.9,2439.8,0.41008]
[1728412896041,2.20187,2440.0,2439.9,0.41007]
[1728412896338,1.7918,2440.0,2439.9,0.41007]
[1728412897135,2.20186,2440.0,2439.8,1.29248]
[1728412897440,1.7918,2440.0,2439.8,0.8824]
[1728412897643,2.20186,2440.0,2439.8,1.29248]
[1728412898133,0.41007,2439.9,2439.8,0.8824]
[1728412898338,1.7918,2440.0,2439.8,0.8824]
[1728412898536,2.20187,2440.0,2439.8,1.29249]
[1728412898926,0.41007,2439.9,2439.8,0.8824]
[1728412899440,0.41007,2439.9,2439.8,1.29249]
[1728412899635,0.41007,2439.9,2439.8,0.8824]
[1728412899939,0.41007,2439.9,2439.3,5.12862]
[1728412899940,4.0984,2439.9,2439.3,5.12862]
[1728412900140,1.3348,2439.8,2439.6,0.41012]
[1728412901144,1.33479,2439.8,2439.7,0.41011]
[1728412901337,2.20187,2440.0,2439.9,0.41007]
[1728412901536,3.12657,2440.0,2439.9,0.41007]
[1728412901733,7.22497,2440.0,2439.9,0.41007]
[1728412902131,0.9247,2440.0,2439.9,0.41007]
[1728412902638,1.91283,2440.3,2440.1,0.41003]
[1728412902639,1.33473,2440.2,2440.1,0.41003]
[1728412914449,1.33473,2440.2,2440.1,1.89003]
[1728412923072,4.0962,2440.4,2440.3,0.41001]
[1728412923073,7.90069406,2440.4,2440.3,0.41001]
[1728412923461,11.99829406,2440.4,2440.3,0.41001]
[1728412924065,7.90069406,2440.4,2440.3,0.41001]
[1728412926463,7.49069406,2440.4,2440.3,0.41001]
[1728412926664,7.90072406,2440.4,2440.2,1.48]
[1728412926863,0.41005,2440.3,2440.2,1.89006]
[1728412927362,4.69294406,2440.3,2440.2,1.89006]
[1728412928966,0.41005,2440.3,2440.2,1.89006]
[1728412929168,4.69294406,2440.3,2440.2,1.89006]
[1728412929366,4.69294406,2440.3,2439.9,1.94378]
[1728412929367,0.4101,2440.0,2439.9,0.9185]
[1728412929564,0.41011,2439.9,2439.8,0.41012]
[1728412929769,0.9036,2439.9,2439.8,0.41012]
[1728412929962,5.18649406,2439.9,2439.8,0.41012]
[1728412930164,0.9036,2439.9,2439.8,0.41012]
[1728412930874,0.9036,2439.9,2439.8,1.89012]
[1728412930875,6.27676263,2439.9,2439.8,1.89012]
[1728412932371,6.68687263,2439.9,2439.8,1.89012]
[1728412932572,0.9036,2439.9,2439.8,0.41012]
[1728412932973,6.27676263,2439.9,2439.8,0.41012]
[1728412933371,6.27676263,2439.9,2439.8,1.89012]
[1728412933966,6.68687263,2439.9,2439.8,1.89012]
[1728412935977,6.27676263,2439.9,2439.8,1.89012]
[1728412936175,6.68687263,2439.9,2439.8,1.89012]
[1728412936771,6.27676263,2439.9,2439.8,1.89012]
[1728412937179,0.9036,2439.9,2439.8,1.89012]
[1728412937772,1.31371,2439.9,2439.8,1.89012]
[1728412938086,0.9036,2439.9,2439.8,1.89012]
[1728412939576,4.70514167,2440.1,2440.0,0.4101]
[1728412939778,3.61789,2440.1,2440.0,1.8901]
[1728412939975,4.70514167,2440.1,2440.0,1.8901]
[1728412940278,0.41009,2440.1,2440.0,1.8901]
[1728412940482,4.70514167,2440.1,2440.0,1.8901]
[1728412940676,3.61789,2440.1,2440.0,1.48]
[1728412940876,3.2078,2440.1,2439.8,1.48]
[1728412941081,0.41011,2440.0,2439.9,0.4101]
[1728412942484,3.6179,2440.1,2440.0,0.4101]
[1728412944989,0.8802,2440.2,2440.1,0.41008]
[1728412945383,5.71119265,2440.2,2440.1,1.30778]
[1728412945786,4.83099265,2440.2,2440.1,1.30778]
[1728412950897,5.24105265,2440.2,2440.1,1.30778]
[1728412951198,10.61421528,2440.2,2440.1,1.30778]
[1728412951401,5.78322263,2440.2,2440.1,1.30778]
[1728412952098,10.0769063,2440.2,2440.1,1.30778]
[1728412952305,4.70374367,2440.2,2440.1,1.30778]
[1728412953907,0.41006,2440.2,2440.1,1.30778]
[1728412955203,4.70374367,2440.2,2440.1,1.30778]
[1728412955703,0.41006,2440.2,2440.1,1.30778]
[1728412956806,4.0984,2440.2,2439.4,3.2078]
[1728412957009,0.41017,2439.7,2439.6,1.34226]
[1728412957516,1.7908,2439.7,2439.6,1.34226]
[1728412957809,2.20095,2439.7,2439.6,2.82226]
[1728412958006,1.7908,2439.7,2439.6,2.82226]
[1728412958814,2.20095,2439.7,2439.6,2.82226]
[1728412959210,7.03134413,2439.7,2439.6,2.82226]
[1728412959405,7.87567819,2439.7,2439.6,2.82226]
[1728412959606,7.46552819,2439.7,2439.6,2.82226]
[1728412959908,7.87567819,2439.7,2439.6,2.82226]
[1728412960105,6.58652819,2439.7,2439.6,2.82226]
[1728412960312,5.67472819,2439.7,2439.6,2.82226]
[1728412960709,5.13651519,2439.7,2439.6,2.82226]
[1728412961114,5.54666519,2439.7,2439.6,2.82226]
[1728412961311,6.43696519,2439.7,2439.1,1.0256]
[1728412961514,4.29218113,2439.5,2439.0,3.2078]
[1728412961720,6.08493819,2439.4,2439.3,0.4102]
[1728412962211,6.08134781,2439.4,2439.3,0.4102]
[1728412962520,0.41022,2439.3,2439.2,1.89023]
[1728412962704,0.41022,2439.3,2439.2,1.48]
[1728412962705,2.14485406,2439.3,2439.2,1.48]
[1728412963215,2.14485406,2439.3,2439.2,1.89023]
[1728412963410,6.43239134,2439.3,2439.2,1.89023]
[1728412964213,5.58805728,2439.3,2439.2,1.89023]
[1728412964714,1.02559,2439.2,2438.5,3.2078]
[1728412964918,1.02559,2439.2,2438.6,2.4224]
[1728412964919,4.69783728,2438.9,2438.6,2.4224]
[1728412965117,4.28753728,2438.8,2438.6,2.4224]
[1728412965322,4.28753728,2438.8,2438.7,0.4103]
[1728412965817,4.69783728,2438.8,2438.7,0.4103]
[1728412966023,4.28753728,2438.8,2438.7,1.8903]
[1728412966620,1.2618,2438.9,2438.8,0.4103]
[1728412966621,0.8515,2438.9,2438.8,0.4103]
[1728412966920,1.26178,2438.9,2438.8,1.8903]
[1728412968413,1.26178,2438.9,2438.8,0.4103]
[1728412970624,0.8515,2438.9,2438.7,1.48]
[1728412970825,0.4103,2438.8,2438.7,1.89031]
[1728412971131,4.1,2438.8,2437.8,3.2078]
[1728412971331,0.8515,2438.9,2438.2,0.9117]
[1728412971332,3.6182,2438.3,2438.2,0.9117]
[1728412971622,0.41042,2438.2,2438.1,0.41041]
[1728412971824,0.41043,2438.1,2438.0,0.41042]
[1728412972535,2.12701,2438.2,2438.1,0.41042]
[1728412973026,0.41045,2438.0,2437.9,0.41044]
[1728412973219,3.61825,2438.0,2437.9,0.41044]
[1728412973620,3.61825,2438.0,2437.8,0.9117]
[1728412973621,0.41045,2437.9,2437.8,1.32215]
[1728412974031,3.61824,2438.0,2437.9,0.41045]
[1728412974232,0.41045,2437.9,2437.8,1.32216]
[1728412974425,0.41045,2437.9,2437.8,0.9117]
[1728412974725,0.41045,2437.9,2437.4,0.9444]
[1728412974726,4.1016,2437.9,2437.4,0.9444]
[1728412974930,3.2078,2437.7,2437.4,0.9444]
[1728412975143,3.2078,2437.7,2437.6,0.4105]
[1728412978431,3.61828,2437.7,2437.6,0.4105]
[1728412978835,3.2078,2437.7,2437.6,0.4105]
[1728412979037,3.2078,2437.7,2437.3,0.9223]
[1728412979333,3.2078,2437.7,2437.5,0.41052]
[1728412979334,2.21562,2437.6,2437.5,0.41052]
[1728412979533,5.42342,2437.6,2437.5,0.41052]
[1728412981041,5.0129,2437.6,2437.5,0.41052]
[1728412981432,5.4234,2437.6,2437.5,0.41052]
[1728412981933,5.0129,2437.6,2437.5,0.41052]
[1728412982134,3.2078,2437.7,2437.5,0.41052]
[1728412982332,0.41046,2437.9,2437.4,4.22632]
[1728412982333,1.29256,2437.9,2437.7,0.41048]
[1728412982533,1.29256,2437.9,2437.8,0.41047]
[1728412982534,2.93456,2437.9,2437.8,0.41047]
[1728412983036,6.6257,2437.9,2437.8,0.41047]
[1728412983237,7.03615,2437.9,2437.8,0.41047]
[1728412985237,6.6257,2437.9,2437.2,1.96902]
[1728412985433,0.41052,2437.6,2437.5,0.41051]
[1728412986533,3.2078,2437.7,2437.6,0.4105]
[1728412986534,3.61829,2437.7,2437.6,0.4105]
[1728412986730,3.2078,2437.7,2437.6,0.4105]
[1728412987043,2.5241,2437.9,2437.4,1.02634]
[1728412987345,2.93456,2437.9,2437.8,0.41047]
[1728412987548,5.39416,2437.9,2437.8,0.41047]
[1728412987840,2.93456,2437.9,2437.8,0.41047]
[1728412988546,2.5241,2437.9,2437.8,0.41047]
[1728412988747,2.93455,2437.9,2437.8,0.41047]
[1728412989638,1.29255,2437.9,2437.8,0.41047]
[1728412992336,0.41048,2437.8,2437.7,0.41047]
[1728412994836,1.29257,2437.9,2437.8,0.41047]
[1728412995037,3.2078,2438.0,2437.9,0.41045]
[1728412995542,3.61823,2438.0,2437.9,0.41045]
[1728412997753,3.2078,2438.0,2437.9,0.41045]
[1728412997961,3.2078,2438.0,2437.9,1.89045]
[1728412998549,3.2078,2438.0,2437.9,3.61045]
[1728412998951,3.6182,2438.3,2438.2,0.41038]
[1728412999743,3.2078,2438.3,2438.2,0.41038]
[1728413000348,3.2078,2438.3,2438.2,2.27548]
[1728413001745,3.2078,2438.3,2438.2,6.37708]
[1728413001945,3.61818,2438.3,2438.2,6.37708]
[1728413002146,3.61818,2438.3,2438.2,1.342]
[1728413002950,3.2078,2438.3,2438.2,1.342]
[1728413005446,0.41037,2438.4,2438.2,1.342]
[1728413005447,2.5307,2438.7,2438.3,1.02594]
[1728413005649,0.41035,2438.6,2438.5,0.41034]
[1728413006646,1.29903,2438.7,2438.6,0.41033]
[1728413011154,4.50683,2438.7,2438.6,0.41033]
[1728413011560,1.29903,2438.7,2438.6,0.41033]
[1728413011857,4.50683,2438.7,2438.6,0.41033]
[1728413012860,4.50682,2438.7,2438.6,0.41033]
[1728413013162,3.2078,2438.7,2438.6,0.41033]
[1728413013963,3.2078,2438.7,2438.6,4.51113]
[1728413014261,3.2078,2438.7,2438.6,11.44383]
[1728413014459,3.61804,2439.2,2439.1,0.41025]
[1728413020561,5.7134,2439.2,2438.6,0.9327]
[1728413020761,0.41031,2438.8,2438.7,0.41029]
[1728413020956,0.4103,2438.9,2438.8,0.41029]
[1728413021162,0.4103,2438.9,2438.6,1.95854]
[1728413021163,0.41031,2438.8,2438.7,0.4103]
[1728413021662,0.41031,2438.8,2438.6,0.9327]
[1728413021663,0.41032,2438.7,2438.6,0.9327]
[1728413021862,0.41033,2438.6,2438.5,30.41033]
[1728413022560,0.41033,2438.7,2438.6,0.41032]
[1728413024260,0.41031,2438.8,2438.7,0.4103]
[1728413026964,4.51111,2438.8,2438.7,0.4103]
[1728413027160,0.41031,2438.8,2438.7,0.4103]
[1728413028565,4.51111,2438.8,2438.7,0.4103]
[1728413028760,0.41031,2438.8,2438.7,0.4103]
[1728413031363,4.51111,2438.8,2438.7,0.4103]
[1728413031875,0.41033,2438.6,2438.5,30.0]
[1728413032076,6.81813,2438.6,2438.5,30.0]
[1728413032369,7.65823932,2438.6,2438.5,30.0]
[1728413034068,11.75903932,2438.6,2438.5,30.0]
[1728413034671,16.0465766,2438.6,2438.5,30.0]
[1728413035873,11.75903932,2438.6,2438.5,30.0]
[1728413036079,16.03319591,2438.6,2438.5,30.0]
[1728413036284,11.75903932,2438.6,2438.5,30.0]
[1728413036776,16.03379412,2438.6,2438.5,30.0]
[1728413037175,8.73299412,2438.6,2438.5,30.0]
[1728413037372,8.73299412,2438.6,2438.5,30.41035]
[1728413037772,8.73299412,2438.6,2438.5,30.0]
[1728413038274,4.45823932,2438.6,2438.5,30.0]
[1728413039381,9.28504307,2438.6,2438.5,30.0]
[1728413040075,4.45823932,2438.6,2438.5,30.0]
[1728413040276,9.28504307,2438.6,2438.5,30.0]
[1728413041874,13.38584307,2438.6,2438.5,30.0]
[1728413042074,17.13220195,2438.6,2438.5,30.0]
[1728413042585,21.41230503,2438.6,2438.5,30.0]
[1728413042790,16.0391424,2438.6,2438.5,30.0]
[1728413042986,11.75903932,2438.6,2438.5,30.0]
[1728413043383,17.75903932,2438.6,2438.5,30.0]
[1728413043583,16.57415528,2438.6,2438.5,30.0]
[1728413043780,22.57415528,2438.6,2438.5,30.0]
[1728413043979,11.75903932,2438.6,2438.5,30.0]
[1728413044498,14.85415528,2438.6,2438.5,30.0]
[1728413044689,13.37415528,2438.6,2438.5,30.0]
[1728413044888,14.3198702,2438.6,2438.5,30.0]
[1728413045291,10.03903932,2438.6,2438.5,30.0]
[1728413045589,19.13496099,2438.6,2438.5,30.0]
[1728413045790,8.73904503,2438.6,2438.5,30.0]
[1728413045983,4.45823932,2438.6,2438.5,30.0]
[1728413046192,4.45823932,2438.6,2438.5,30.9496]
[1728413046900,4.45823932,2438.6,2438.5,31.35995]
[1728413047108,4.45823932,2438.6,2438.5,30.9496]
[1728413048402,4.45823932,2438.6,2438.5,31.35995]
[1728413049204,4.45823932,2438.6,2438.5,30.9496]
[1728413050001,9.27335528,2438.6,2438.5,30.9496]
[1728413050801,4.45823932,2438.6,2438.5,30.9496]
[1728413051001,4.45823932,2438.6,2438.5,31.35995]
[1728413051201,9.27534714,2438.6,2438.5,31.35995]
[1728413052802,9.27534714,2438.6,2438.5,30.9496]
[1728413053203,4.45823932,2438.6,2438.5,30.9496]
[1728413053404,4.45823932,2438.6,2438.5,31.35995]
[1728413054201,4.45823932,2438.6,2438.5,30.9496]
[1728413054409,9.27500374,2438.6,2438.5,30.9496]
[1728413054609,4.45823932,2438.6,2438.5,30.9496]
[1728413055702,9.27518823,2438.6,2438.5,31.35995]
[1728413056806,4.45823932,2438.6,2438.5,31.35995]
[1728413057803,4.04790932,2438.6,2438.5,31.35995]
[1728413058213,1.633,2438.9,2438.5,0.9496]
[1728413058513,0.41032,2438.8,2438.7,0.4103]
[1728413058712,0.41032,2438.8,2438.7,1.3374]
[1728413059614,3.61808,2439.0,2438.9,0.41028]
[1728413062816,3.2078,2439.0,2438.9,0.41028]
[1728413063016,3.61807,2439.0,2438.9,0.41028]
[1728413065010,0.41027,2439.0,2438.9,0.41028]
[1728413065814,0.41024,2439.2,2439.1,0.41023]
[1728413066416,0.41024,2439.2,2439.1,1.29063]